fUST/lending_fUST_20250916
["ID","MTS","AMOUNT","RATE_DAILY","PERIOD"]
[385779056,1758033063862,-728.31,0.00025753,3]
[385779057,1758033063872,-480.0,0.00025753,3]
[385779058,1758033063881,-2518.46,0.00025753,3]
[385779059,1758033063891,-2450.58,0.00025753,3]
[385779060,1758033063900,-1697.73,0.00025753,3]
[385779061,1758033063909,-400.26706273,0.00025753,2]
[385779062,1758033063919,-500.0,0.00025754,2]
[385779063,1758033063928,-800.0,0.0002576,2]
[385779064,1758033063940,-17819.51826764,0.000258,2]
[385779065,1758033063950,-520.0,0.000258,7]
[385779066,1758033063959,-168.0,0.00025835,2]
[385779067,1758033063968,-800.0,0.00025869,2]
[385779068,1758033063978,-168.0,0.00025874,2]
[385779069,1758033063989,-28512.39,0.000259,7]
[385779070,1758033063998,-800.0,0.00025903,2]
[385779071,1758033064008,-800.0,0.00025903,2]
[385779072,1758033064018,-168.0,0.00025917,2]
[385779073,1758033064027,-168.0,0.00025946,2]
[385779074,1758033064037,-6634.620708,0.00025954,2]
[385779075,1758033064047,-522.41280339,0.00026,2]
[385779076,1758033064056,-19900.0,0.00026,2]
[385779077,1758033064065,-23691.25,0.00026,2]
[385779078,1758033064075,-4000.0,0.00026008,2]
[385779079,1758033064086,-732.0,0.00026027,2]
[385779080,1758033064095,-480.0,0.00026027,3]
[385779081,1758033064105,-838.0,0.00026027,3]
[385779082,1758033064115,-507.33,0.00026027,3]
[385779083,1758033064125,-480.0,0.00026027,3]
[385779084,1758033064135,-480.0,0.00026027,3]
[385779085,1758033064145,-540.2,0.00026027,3]
[385779086,1758033064155,-761.92,0.00026027,3]
[385779087,1758033064164,-1015.22,0.00026027,3]
[385779088,1758033064174,-941.05,0.00026027,4]
[385779089,1758033064187,-480.0,0.00026027,3]
[385779090,1758033064196,-180.8750119,0.00026027,3]
[385779091,1758033064205,-1077.14,0.00026027,3]
[385779092,1758033064215,-1203.36,0.00026027,3]
[385779093,1758033064225,-836.46,0.00026027,3]
[385779094,1758033064235,-2542.77,0.00026027,3]
[385779095,1758033064244,-515.08852253,0.00026027,3]
[385779096,1758033064254,-6141.36,0.00026027,3]
[385779097,1758033064266,-480.0,0.00026027,3]
[385779098,1758033064276,-10519.97,0.00026027,3]
[385779099,1758033064285,-658.35,0.00026027,3]
[385779100,1758033064295,-480.0,0.00026027,3]
[385779101,1758033064304,-547.42,0.00026027,3]
[385779102,1758033064313,-1840.34,0.00026027,3]
[385779103,1758033064322,-996.22,0.00026027,3]
[385779104,1758033064332,-1480.9,0.00026027,3]
[385779105,1758033064341,-660.97,0.00026027,3]
[385779106,1758033064351,-963.27,0.00026027,3]
[385779107,1758033064361,-1376.66,0.00026027,3]
[385779108,1758033064370,-1069.08,0.00026027,3]
[385779109,1758033064380,-1089.45,0.00026027,3]
[385779110,1758033064389,-3812.15,0.00026027,3]
[385779111,1758033064399,-480.0,0.00026027,3]
[385779112,1758033064408,-1195.44,0.00026027,3]
[385779113,1758033064417,-480.0,0.00026027,3]
[385779114,1758033064426,-285.30833325,0.00026027,3]
[385779115,1758033064436,-553.29,0.00026027,3]
[385779116,1758033064445,-769.04,0.00026027,3]
[385779117,1758033064454,-1200.81,0.00026027,3]
[385779118,1758033064463,-883.33,0.00026027,3]
[385779119,1758033064473,-728.31,0.00026027,3]
[385779120,1758033064483,-480.0,0.00026027,3]
[385779121,1758033064493,-2518.46,0.00026027,3]
[385779122,1758033064502,-2450.58,0.00026027,3]
[385779123,1758033064512,-1697.73,0.00026027,3]
[385779124,1758033064521,-500.0,0.00026028,2]
[385779125,1758033064531,-901.46908503,0.00026145,4]
[385779126,1758033064540,-191.84960941,0.0002616,2]
[385779127,1758033064549,-760.0,0.00026164,2]
[385779128,1758033064559,-732.0,0.00026301,2]
[385779129,1758033064568,-480.0,0.00026301,3]
[385779130,1758033064578,-838.0,0.00026301,3]
[385779131,1758033064587,-507.33,0.00026301,3]
[385779132,1758033064596,-480.0,0.00026301,3]
[385779133,1758033064606,-480.0,0.00026301,3]
[385779134,1758033064615,-540.2,0.00026301,3]
[385779135,1758033064718,-761.92,0.00026301,3]
[385779136,1758033064728,-1015.22,0.00026301,3]
[385779137,1758033064738,-480.0,0.00026301,3]
[385779138,1758033064747,-1077.14,0.00026301,3]
[385779139,1758033064756,-1203.36,0.00026301,3]
[385779140,1758033064765,-836.46,0.00026301,3]
[385779141,1758033064775,-2542.77,0.00026301,3]
[385779142,1758033064785,-6141.36,0.00026301,3]
[385779143,1758033064795,-480.0,0.00026301,3]
[385779144,1758033064804,-10519.97,0.00026301,3]
[385779145,1758033064813,-658.35,0.00026301,3]
[385779146,1758033064823,-480.0,0.00026301,3]
[385779147,1758033064832,-1840.34,0.00026301,3]
[385779148,1758033064842,-996.22,0.00026301,3]
[385779149,1758033064851,-1480.9,0.00026301,3]
[385779150,1758033064860,-660.97,0.00026301,3]
[385779151,1758033064869,-963.27,0.00026301,3]
[385779152,1758033064879,-1376.66,0.00026301,3]
[385779153,1758033064888,-1069.08,0.00026301,3]
[385779154,1758033064897,-1089.45,0.00026301,3]
[385779155,1758033064907,-3812.15,0.00026301,3]
[385779156,1758033064916,-480.0,0.00026301,3]
[385779157,1758033064925,-1195.44,0.00026301,3]
[385779158,1758033064934,-480.0,0.00026301,3]
[385779159,1758033064943,-553.29,0.00026301,3]
[385779160,1758033064952,-769.04,0.00026301,3]
[385779161,1758033064962,-1200.81,0.00026301,3]
[385779162,1758033064971,-883.33,0.00026301,3]
[385779163,1758033064982,-728.31,0.00026301,3]
[385779164,1758033064991,-448.78263641,0.00026301,3]
[385779165,1758033065000,-2518.46,0.00026301,3]
[385779166,1758033065010,-2450.58,0.00026301,3]
[385779167,1758033065019,-1697.73,0.00026301,3]
[385779168,1758033065029,-500.0,0.00026302,2]
[385779169,1758033065039,-864.0,0.00026413,20]
[385779170,1758033065048,-179.78425889,0.00026414,2]
[385779171,1758033065057,-318679.80552446,0.0002644,2]
[385779172,1758033065073,-78700.11447554,0.0002644,2]
[385779173,1758033065082,-798.02201976,0.00026472,2]
[385779174,1758033065091,-657.0,0.000265,7]
[385779175,1758033065100,-4500.0,0.00026556,2]
[385779176,1758033065109,-732.0,0.00026575,2]
[385779177,1758033065118,-535.73641228,0.00026575,3]
[385779178,1758033065127,-838.0,0.00026575,3]
[385779179,1758033065136,-507.33,0.00026575,3]
[385779180,1758033065145,-480.0,0.00026575,3]
[385779181,1758033065155,-480.0,0.00026575,3]
[385779182,1758033065164,-540.2,0.00026575,3]
[385779183,1758033065173,-761.92,0.00026575,3]
[385779184,1758033065187,-1015.22,0.00026575,3]
[385779185,1758033065196,-480.0,0.00026575,3]
[385779186,1758033065205,-1077.14,0.00026575,3]
[385779187,1758033065214,-1203.36,0.00026575,3]
[385779188,1758033065225,-836.46,0.00026575,3]
[385779189,1758033065234,-2542.77,0.00026575,3]
[385779190,1758033065243,-6141.36,0.00026575,3]
[385779191,1758033065252,-480.0,0.00026575,3]
[385779192,1758033065261,-10519.97,0.00026575,3]
[385779193,1758033065271,-658.35,0.00026575,3]
[385779194,1758033065281,-480.0,0.00026575,3]
[385779195,1758033065290,-1840.34,0.00026575,3]
[385779196,1758033065299,-996.22,0.00026575,3]
[385779197,1758033065308,-1480.9,0.00026575,3]
[385779198,1758033065318,-660.97,0.00026575,3]
[385779199,1758033065327,-963.27,0.00026575,3]
[385779200,1758033065336,-1376.66,0.00026575,3]
[385779201,1758033065345,-1069.08,0.00026575,3]
[385779202,1758033065354,-1089.45,0.00026575,3]
[385779203,1758033065363,-3812.15,0.00026575,3]
[385779204,1758033065372,-480.0,0.00026575,3]
[385779205,1758033065381,-1195.44,0.00026575,3]
[385779206,1758033065390,-480.0,0.00026575,3]
[385779207,1758033065399,-553.29,0.00026575,3]
[385779208,1758033065408,-769.04,0.00026575,3]
[385779209,1758033065417,-1200.81,0.00026575,3]
[385779210,1758033065425,-883.33,0.00026575,3]
[385779211,1758033065436,-728.31,0.00026575,3]
[385779212,1758033065445,-2518.46,0.00026575,3]
[385779213,1758033065454,-2450.58,0.00026575,3]
[385779214,1758033065463,-1697.73,0.00026575,3]
[385779215,1758033065473,-500.0,0.00026576,2]
[385779216,1758033065483,-1652.6133494,0.00026597,2]
[385779217,1758033065491,-800.0,0.00026622,2]
[385779218,1758033065500,-860.0,0.00026712,2]
[385779219,1758033065510,-811.5413366,0.00026763,2]
[385779220,1758033065519,-166.0,0.00026783,3]
[385779221,1758033065529,-166.0,0.00026783,3]
[385779222,1758033065538,-172.0,0.00026783,3]
[385779223,1758033065547,-162.0,0.00026783,3]
[385779224,1758033065557,-174.636924,0.00026783,3]
[385779225,1758033065566,-204.16933207,0.00026783,3]
[385779226,1758033065575,-156.0,0.00026783,3]
[385779227,1758033065584,-156.0,0.00026783,3]
[385779228,1758033065593,-156.0,0.00026783,3]
[385779229,1758033065602,-156.0,0.00026783,3]
[385779230,1758033065611,-154.59988194,0.00026783,3]
[385779231,1758033065621,-151.0,0.00026783,3]
[385779232,1758033065630,-151.0,0.00026783,3]
[385779233,1758033065640,-151.0,0.00026783,3]
[385779234,1758033065649,-151.0,0.00026783,3]
[385779235,1758033065658,-151.0,0.00026783,3]
[385779236,1758033065668,-151.0,0.00026783,3]
[385779237,1758033065677,-151.0,0.00026783,3]
[385779238,1758033065687,-151.0,0.00026783,3]
[385779239,1758033065696,-151.0,0.00026783,3]
[385779240,1758033065706,-151.0,0.00026783,3]
[385779241,1758033065716,-151.0,0.00026783,3]
[385779242,1758033065725,-151.0,0.00026783,3]
[385779243,1758033065735,-151.0,0.00026783,3]
[385779244,1758033065744,-151.0,0.00026783,3]
[385779245,1758033065754,-151.0,0.00026783,3]
[385779246,1758033065763,-151.0,0.00026783,3]
[385779247,1758033065772,-151.0,0.00026783,3]
[385779248,1758033065782,-151.0,0.00026783,3]
[385779249,1758033065791,-151.0,0.00026783,3]
[385779250,1758033065801,-151.0,0.00026783,3]
[385779251,1758033065810,-151.0,0.00026783,3]
[385779252,1758033065819,-151.0,0.00026783,3]
[385779253,1758033065829,-151.0,0.00026783,3]
[385779254,1758033065838,-151.0,0.00026783,3]
[385779255,1758033065847,-151.0,0.00026783,3]
[385779256,1758033065857,-151.0,0.00026783,3]
[385779257,1758033065866,-151.0,0.00026783,3]
[385779258,1758033065875,-151.0,0.00026783,3]
[385779259,1758033065885,-151.0,0.00026783,3]
[385779260,1758033065894,-151.0,0.00026783,3]
[385779261,1758033065904,-151.0,0.00026783,3]
[385779262,1758033065913,-151.0,0.00026783,3]
[385779263,1758033065922,-151.0,0.00026783,3]
[385779264,1758033065932,-151.0,0.00026783,3]
[385779265,1758033065941,-151.0,0.00026783,3]
[385779266,1758033065951,-151.0,0.00026783,3]
[385779267,1758033065961,-151.0,0.00026783,3]
[385779268,1758033065970,-151.0,0.00026783,3]
[385779269,1758033065980,-151.0,0.00026783,3]
[385779270,1758033065990,-151.0,0.00026783,3]
[385779271,1758033066000,-151.0,0.00026783,3]
[385779272,1758033066010,-151.0,0.00026783,3]
[385779273,1758033066019,-151.0,0.00026783,3]
[385779274,1758033066029,-151.0,0.00026783,3]
[385779275,1758033066038,-151.0,0.00026783,3]
[385779276,1758033066048,-151.0,0.00026783,3]
[385779277,1758033066057,-151.0,0.00026783,3]
[385779278,1758033066067,-151.0,0.00026783,3]
[385779279,1758033066076,-151.0,0.00026783,3]
[385779280,1758033066085,-151.0,0.00026783,3]
[385779281,1758033066094,-151.0,0.00026783,3]
[385779282,1758033066107,-151.0,0.00026783,3]
[385779283,1758033066119,-151.0,0.00026783,3]
[385779284,1758033066128,-151.0,0.00026783,3]
[385779285,1758033066137,-151.0,0.00026783,3]
[385779286,1758033066147,-151.0,0.00026783,3]
[385779287,1758033066155,-151.0,0.00026783,3]
[385779288,1758033066165,-172.23163197,0.00026783,3]
[385779289,1758033066175,-685.03,0.000268,7]
[385779290,1758033066190,-1480.3839811,0.00026829,2]
[385779291,1758033066201,-732.0,0.00026849,2]
[385779292,1758033066210,-300.0,0.00026849,5]
[385779293,1758033066219,-838.0,0.00026849,3]
[385779294,1758033066234,-507.33,0.00026849,3]
[385779295,1758033066243,-480.0,0.00026849,3]
[385779296,1758033066254,-480.0,0.00026849,3]
[385779297,1758033066263,-540.2,0.00026849,3]
[385779298,1758033066272,-761.92,0.00026849,3]
[385779299,1758033066282,-1015.22,0.00026849,3]
[385779300,1758033066291,-480.0,0.00026849,3]
[385779301,1758033066301,-1077.14,0.00026849,3]
[385779302,1758033066311,-1203.36,0.00026849,3]
[385779303,1758033066320,-836.46,0.00026849,3]
[385779304,1758033066330,-2542.77,0.00026849,3]
[385779305,1758033066339,-6141.36,0.00026849,3]
[385779306,1758033066349,-480.0,0.00026849,3]
[385779307,1758033066358,-658.35,0.00026849,3]
[385779308,1758033066367,-10519.97,0.00026849,3]
[385779309,1758033066377,-480.0,0.00026849,3]
[385779310,1758033066387,-1840.34,0.00026849,3]
[385779311,1758033066396,-996.22,0.00026849,3]
[385779312,1758033066405,-1480.9,0.00026849,3]
[385779313,1758033066414,-660.97,0.00026849,3]
[385779314,1758033066423,-963.27,0.00026849,3]
[385779315,1758033066435,-1376.66,0.00026849,3]
[385779316,1758033066445,-1069.08,0.00026849,3]
[385779317,1758033066454,-1089.45,0.00026849,3]
[385779318,1758033066463,-3812.15,0.00026849,3]
[385779319,1758033066472,-587.42497589,0.00026849,3]
[385779320,1758033066482,-1195.44,0.00026849,3]
[385779321,1758033066491,-480.0,0.00026849,3]
[385779322,1758033066501,-553.29,0.00026849,3]
[385779323,1758033066510,-769.04,0.00026849,3]
[385779324,1758033066519,-1200.81,0.00026849,3]
[385779325,1758033066528,-883.33,0.00026849,3]
[385779326,1758033066539,-728.31,0.00026849,3]
[385779327,1758033066637,-2518.46,0.00026849,3]
[385779328,1758033066646,-2450.58,0.00026849,3]
[385779329,1758033066656,-1697.73,0.00026849,3]
[385779330,1758033066666,-500.0,0.0002685,2]
[385779331,1758033066675,-800.0,0.00026899,2]
[385779332,1758033066685,-800.0,0.00026899,2]
[385779333,1758033066695,-393.0,0.000269,7]
[385779334,1758033066704,-2074.06,0.00026976,2]
[385779335,1758033066713,-2383.65919433,0.00027104,2]
[385779336,1758033066726,-2616.34080567,0.00027104,2]
[385779337,1758033066735,-459.96362018,0.00027111,2]
[385779338,1758033066744,-732.0,0.00027123,2]
[385779339,1758033066754,-838.0,0.00027123,3]
[385779340,1758033066763,-507.33,0.00027123,3]
[385779341,1758033066773,-480.0,0.00027123,3]
[385779342,1758033066782,-480.0,0.00027123,3]
[385779343,1758033066791,-540.2,0.00027123,3]
[385779344,1758033066801,-761.92,0.00027123,3]
[385779345,1758033066810,-980.15533653,0.00027123,3]
[385779346,1758033115924,5000.0,0.00021,120]
[385779347,1758033188167,758.12177527,0.000199,2]
[385779360,1758033380397,732.85104965,0.000199,2]
[385779361,1758033381940,5000.0,0.00020526,2]
[385779362,1758033390195,2417.813247,0.00020526,2]
[385779363,1758033407252,189.75484279,0.00020526,2]
[385779364,1758033407279,1325.18589669,0.00020526,2]
[385779365,1758033493201,226.041104,0.00020515,2]
[385779366,1758033520190,9773.968896,0.0002052,2]
[385779367,1758033520212,226.031104,0.0002052,2]
[385779370,1758033569389,736.58060022,0.000199,2]
[385779371,1758033593962,1000.0,0.0002052,2]
[385779374,1758033660492,480.00891068,0.00030351,50]
[385779375,1758033729258,157.0,0.00028,31]
[385779376,1758033751173,712.02791372,0.000199,2]
[385779377,1758033773162,-370.128862,0.00020731,2]
[385779378,1758033773189,-168.59589,0.00020842,2]
[385779379,1758033773218,-712.02791352,0.00021149,2]
[385779380,1758033773243,-282.0067154,0.00021182,2]
[385779381,1758033773268,-160.0,0.00021367,2]
[385779382,1758033773294,-1200.0,0.00021837,2]
[385779383,1758033773321,-300.0,0.00021837,2]
[385779384,1758033773348,-1200.0,0.00021837,2]
[385779385,1758033773375,-2057.24061908,0.00021838,2]
[385779386,1758033794064,172.2141233,0.00027473,30]
[385779387,1758033794122,584.4874247,0.00027473,30]
[385779390,1758033940502,664.55938601,0.000199,2]
[385779391,1758034005262,-1275.089442,0.0002105,2]
[385779392,1758034005285,-160.5006309,0.00021149,2]
[385779393,1758034121472,637.05738563,0.000199,2]
[385779399,1758034232848,-666.0,0.00020894,2]
[385779400,1758034232858,-605.33420501,0.00021043,6]
[385779401,1758034232867,-637.05738538,0.00021149,2]
[385779402,1758034232876,-304.92194958,0.00021254,6]
[385779410,1758034233024,-941.0,0.00021636,2]
[385779412,1758034233035,-272.13507429,0.00021817,2]
[385779414,1758034233046,-211.43083427,0.00021817,2]
[385779415,1758034233056,-158.26,0.00021907,3]
[385779417,1758034233066,-474.83,0.00021907,3]
[385779419,1758034233076,-1200.0,0.00021914,2]
[385779421,1758034233086,-300.0,0.00021914,2]
[385779423,1758034233096,-500.0,0.00021915,2]
[385779425,1758034233106,-543.13286091,0.00021915,2]
[385779427,1758034233117,-358.64610974,0.00021915,2]
[385779429,1758034233128,-500.0,0.00021915,2]
[385779431,1758034233138,-500.0,0.00021915,2]
[385779433,1758034233148,-500.0,0.00021915,2]
[385779435,1758034233159,-500.0,0.00021915,2]
[385779436,1758034233168,-500.0,0.00021915,2]
[385779437,1758034233178,-500.0,0.00021915,2]
[385779438,1758034233188,-500.0,0.00021915,2]
[385779439,1758034233197,-500.0,0.00021915,2]
[385779440,1758034233207,-500.0,0.00021915,2]
[385779441,1758034233217,-300.92984423,0.00021915,2]
[385779442,1758034233227,-500.0,0.00021915,2]
[385779443,1758034233237,-500.0,0.00021915,2]
[385779444,1758034233247,-500.0,0.00021915,2]
[385779445,1758034233258,-499.99999999,0.00021915,2]
[385779446,1758034233268,-50000.0,0.00021915,2]
[385779447,1758034233279,-160.0,0.00021915,2]
[385779448,1758034233289,-217.86301978,0.00021915,2]
[385779449,1758034233299,-160.0,0.00021915,2]
[385779450,1758034233310,-160.0,0.00021915,2]
[385779451,1758034233320,-500.0,0.00021916,2]
[385779452,1758034233330,-817.01298739,0.00021916,2]
[385779453,1758034233340,-483.87727764,0.00021916,2]
[385779454,1758034233349,-760.43845178,0.00021916,2]
[385779455,1758034233362,-56.57453561,0.00021916,2]
[385779456,1758034233372,-251.46277591,0.00021916,2]
[385779457,1758034233381,-154.19068848,0.00021916,2]
[385779458,1758034233393,-370.0,0.00021916,2]
[385779459,1758034233410,-292.82229891,0.00021916,2]
[385779460,1758034233420,-817.01298739,0.00021916,2]
[385779461,1758034233430,-817.01298739,0.00021916,2]
[385779462,1758034233440,-380.25517152,0.00021916,2]
[385779463,1758034233451,-258.20037408,0.00021916,2]
[385779508,1758034240825,-368.78,0.00021907,3]
[385779509,1758034240835,-178.55744179,0.00021916,2]
[385779510,1758034240844,-817.01298739,0.00021916,2]
[385779511,1758034240853,-817.01298739,0.00021916,2]
[385779512,1758034240863,-817.01298739,0.00021916,2]
[385779513,1758034240872,-817.01298739,0.00021916,2]
[385779514,1758034240881,-817.01298739,0.00021916,2]
[385779515,1758034240891,-817.01298739,0.00021916,2]
[385779516,1758034240900,-817.01298739,0.00021916,2]
[385779517,1758034240909,-817.01298739,0.00021916,2]
[385779518,1758034240918,-817.01298739,0.00021916,2]
[385779519,1758034240928,-817.01298739,0.00021916,2]
[385779520,1758034240938,-817.01298739,0.00021916,2]
[385779521,1758034240948,-817.01298739,0.00021916,2]
[385779522,1758034240957,-219.72037122,0.00021916,2]
[385779523,1758034240969,-597.29261617,0.00021916,2]
[385779524,1758034240979,-817.01298739,0.00021916,2]
[385779525,1758034240989,-898.71428614,0.00021916,2]
[385779526,1758034240998,-898.71428614,0.00021916,2]
[385779527,1758034241008,-898.71428614,0.00021916,2]
[385779528,1758034241017,-898.71428614,0.00021916,2]
[385779529,1758034241026,-898.71428614,0.00021916,2]
[385779530,1758034241035,-782.2129382,0.00021916,2]
[385779531,1758034241046,-116.50134794,0.00021916,2]
[385779532,1758034241055,-898.71428614,0.00021916,2]
[385779533,1758034241064,-898.71428614,0.00021916,2]
[385779534,1758034241073,-500.0,0.00021917,2]
[385779535,1758034241082,-480.0,0.00021917,2]
[385779536,1758034241091,-480.0,0.00021917,2]
[385779537,1758034241100,-480.0,0.00021917,2]
[385779538,1758034241109,-462.39903428,0.00021917,2]
[385779539,1758034241118,-480.0,0.00021917,2]
[385779540,1758034241127,-492.74291574,0.00021917,2]
[385779541,1758034241136,-480.0,0.00021917,2]
[385779542,1758034241145,-486.14376906,0.00021917,2]
[385779543,1758034241154,-480.0,0.00021917,2]
[385779544,1758034241163,-480.0,0.00021917,2]
[385779545,1758034241173,-412.15468054,0.00021917,2]
[385779546,1758034241182,-480.0,0.00021917,2]
[385779547,1758034241191,-480.0,0.00021917,2]
[385779548,1758034241200,-265.99250939,0.00021917,2]
[385779549,1758034241209,-480.0,0.00021917,2]
[385779550,1758034241218,-483.44639711,0.00021917,2]
[385779551,1758034241227,-480.0,0.00021917,2]
[385779552,1758034241238,-480.0,0.00021917,2]
[385779553,1758034241247,-480.0,0.00021917,2]
[385779554,1758034241256,-480.0,0.00021917,2]
[385779555,1758034241265,-480.0,0.00021917,2]
[385779556,1758034241275,-480.0,0.00021917,2]
[385779557,1758034241284,-480.0,0.00021917,2]
[385779558,1758034241293,-480.0,0.00021917,2]
[385779559,1758034241306,-480.0,0.00021917,2]
[385779560,1758034241317,-480.0,0.00021917,2]
[385779561,1758034241326,-480.0,0.00021917,2]
[385779562,1758034241335,-480.0,0.00021917,2]
[385779563,1758034241345,-480.0,0.00021917,2]
[385779564,1758034241354,-480.0,0.00021917,2]
[385779565,1758034241363,-480.0,0.00021917,2]
[385779566,1758034241372,-480.0,0.00021917,2]
[385779567,1758034241382,-480.0,0.00021917,2]
[385779568,1758034241391,-480.0,0.00021917,2]
[385779569,1758034241400,-417.23580292,0.00021917,2]
[385779578,1758034244082,-62.76419708,0.00021917,2]
[385779579,1758034244092,-96.74581102,0.00021917,2]
[385779580,1758034244104,-352.39927581,0.00021917,2]
[385779581,1758034244113,-480.0,0.00021917,2]
[385779582,1758034244122,-480.0,0.00021917,2]
[385779584,1758034244132,-189.69960036,0.00021917,2]
[385779585,1758034244141,-480.0,0.00021917,2]
[385779586,1758034244150,-289.73296383,0.00021917,2]
[385779587,1758034244161,-48.64158142,0.00021917,2]
[385779588,1758034244171,-310.56321058,0.00021917,2]
[385779611,1758034246993,-693.37431188,0.00021179,2]
[385779612,1758034247035,-2704.67007632,0.00021179,2]
[385779613,1758034247044,-500.0,0.00021915,2]
[385779614,1758034247053,-180.0,0.00021915,2]
[385779615,1758034247062,-500.0,0.00021915,2]
[385779616,1758034247071,-169.43678942,0.00021917,2]
[385779617,1758034247081,-480.0,0.00021917,2]
[385779618,1758034247090,-480.0,0.00021917,2]
[385779619,1758034247099,-480.0,0.00021917,2]
[385779620,1758034247108,-480.0,0.00021917,2]
[385779621,1758034247118,-480.0,0.00021917,2]
[385779622,1758034247127,-480.0,0.00021917,2]
[385779623,1758034247136,-480.0,0.00021917,2]
[385779624,1758034247145,-480.0,0.00021917,2]
[385779625,1758034247155,-601.91936783,0.00021917,2]
[385779626,1758034247164,-480.0,0.00021917,2]
[385779627,1758034247173,-480.0,0.00021917,2]
[385779628,1758034247182,-480.0,0.00021917,2]
[385779629,1758034247191,-480.0,0.00021917,2]
[385779630,1758034247200,-480.0,0.00021917,2]
[385779631,1758034247209,-480.0,0.00021917,2]
[385779632,1758034247218,-480.0,0.00021917,2]
[385779633,1758034247227,-229.60530994,0.00021917,2]
[385779634,1758034247237,-480.0,0.00021917,2]
[385779635,1758034247246,-480.0,0.00021917,2]
[385779636,1758034247255,-480.0,0.00021917,2]
[385779637,1758034247265,-480.0,0.00021917,2]
[385779638,1758034247274,-480.0,0.00021917,2]
[385779639,1758034247283,-480.0,0.00021917,2]
[385779640,1758034247293,-480.0,0.00021917,2]
[385779641,1758034247302,-480.0,0.00021917,2]
[385779642,1758034247311,-480.0,0.00021917,2]
[385779643,1758034247321,-480.0,0.00021917,2]
[385779644,1758034247331,-480.0,0.00021917,2]
[385779645,1758034247340,-480.0,0.00021917,2]
[385779646,1758034247350,-480.0,0.00021917,2]
[385779647,1758034247359,-480.0,0.00021917,2]
[385779648,1758034247368,-480.0,0.00021917,2]
[385779649,1758034247377,-480.0,0.00021917,2]
[385779650,1758034247387,-480.0,0.00021917,2]
[385779651,1758034247396,-480.0,0.00021917,2]
[385779652,1758034247405,-480.0,0.00021917,2]
[385779653,1758034247414,-480.0,0.00021917,2]
[385779654,1758034247423,-543.6117831,0.00021917,2]
[385779655,1758034247432,-480.0,0.00021917,2]
[385779656,1758034247441,-569.94630896,0.00021917,2]
[385779657,1758034247450,-480.0,0.00021917,2]
[385779658,1758034247459,-480.0,0.00021917,2]
[385779659,1758034247468,-480.0,0.00021917,2]
[385779660,1758034247478,-480.0,0.00021917,2]
[385779661,1758034247487,-480.0,0.00021917,2]
[385779662,1758034247497,-480.0,0.00021917,2]
[385779663,1758034247506,-480.0,0.00021917,2]
[385779664,1758034247515,-480.0,0.00021917,2]
[385779665,1758034247528,-480.0,0.00021917,2]
[385779666,1758034247539,-480.0,0.00021917,2]
[385779667,1758034247548,-480.0,0.00021917,2]
[385779668,1758034247557,-480.0,0.00021917,2]
[385779669,1758034247567,-480.0,0.00021917,2]
[385779670,1758034247576,-480.0,0.00021917,2]
[385779671,1758034247585,-480.0,0.00021917,2]
[385779672,1758034247594,-480.0,0.00021917,2]